Workbook

Sheet Payment Claim
A1: Place Supplier logo here | AJ1: SUPPLIER PAYMENT CLAIM (SPC)
AJ2: SUMMARY & DECLARATION
A4: Project | E4: [Project Name] | S4: SPC No. | W4: [Insert Phase-MMM-YY} e.g. BDD-Jan-17 | AP4: Update this part before anything else
A5: Phase | E5: [Project Phase]
A6: Supplier (SC) | E6: [Company Name] | S6: Date | W6: 2017-04-04
A7: SC's Repres. | E7: [SC's Representative] | S7: Ref. No. | W7: =CONCATENATE(E12,"-SPC-", W4) -> [Contract #]-SPC-[Insert Phase-MMM-YY} e.g. BDD-Jan-17
A8: 1. Contract Details
A10: Subcontract Title | E10: [Contract Title] | S10: Original Unit Basis Value | AA10: 17869385.26
S11: Original Milestone Value | AA11: 0
A12: Subcontract No. | E12: [Contract #] | S12: Current Value ($)
A13: Subcontract Start | E13: 2016-12-23 | S13: Work Value | W13: =AA10+'B-Variation'!N39 -> 17869385.26
A14: Subcontract End | E14: 2017-12-22 | S14: Variation(s) Value | W14: ='B-Variation'!N40 -> 0 | BE14: =IF(E14<W6, "WARNING! - past subcontract end date", "") -> 
A15: Currency | E15: CAD | S15: Travel Value | W15: ='D-Travel & Living'!S16 -> 74950
A16: Holdback (%) | E16: 0 | S16: Total | W16: =SUM(W13:AJ15) -> 17944335.26
A17: 2. Summary | N17: Amount of This Certificate | U17: Previously Certified | Z17: Total Certified to Date | AH17: Expended (%)
A19: A) | C19: Work Complete | AP19: Nothing to fill here, everything updates automatically
C20: 1) | D20: Unit Rate Basis | N20: ='A-Work Complete'!AF40 -> 13000 | U20: ='A-Work Complete'!AX40 -> 15500 | Z20: =SUM(N20:Y20) -> 28500 | AH20: =IF(Z20<>0,IFERROR(Z20/(AA10+'B-Variation'!N39), "ERROR!"), "0%") -> 0.001594906573
C21: 2) | D21: Milestone Basis | N21: ='A-Work Complete'!U60 -> 0 | U21: ='A-Work Complete'!Z60 -> 0 | Z21: =SUM(N21:Y21) -> 0 | AH21: =IF(Z21<>0,IFERROR(Z21/AA11, "ERROR!"), "0%") -> 0%
A23: B) | C23: Variation(s) (+/-) | N23: ='B-Variation'!X41 -> 0 | U23: ='B-Variation'!AC41 -> 0 | Z23: =SUM(N23:Y23) -> 0 | AH23: =IF(Z23<>0,IFERROR(Z23/(W14), "ERROR!"), "0%") -> 0%
C25: Total Work Complete | K25: A1+A2+B | N25: =SUM(N20:T23) -> 13000 | U25: =SUM(U20:Y23) -> 15500 | Z25: =SUM(N25:Y25) -> 28500 | AH25: =IF(Z25<>0,IFERROR(Z25/(SUM(W13:AJ14,AA11)), "ERROR!"), "0%") -> 0.001594906573
D26: Less Holdback | N26: =ROUND(N25*E16,2)*-1 -> 0 | U26: =ROUND(U25*E16,2)*-1 -> 0 | Z26: =SUM(N26:Y26) -> 0
C27: C) | D27: Less Backcharges | N27: ='C-Backcharges'!S23 -> 0 | U27: ='C-Backcharges'!Y23 -> 0 | Z27: =SUM(N27:Y27) -> 0
A29: D) | C29: Travel & Living | N29: ='D-Travel & Living'!CB52 -> 4128.543616 | U29: ='E-Previous Certifications'!DB33 -> 0 | Z29: =SUM(N29:Y29) -> 4128.543616 | AH29: =IF(Z29<>0,IFERROR(Z29/W15, "ERROR!"), "0%") -> 0.05508397086
E31: Net Amount Payable | N31: =SUM(N25:T29) -> 17128.54362 | U31: =SUM(U25:Y29) -> 15500 | Z31: =SUM(Z25:AF29) -> 32628.54362 | AH31: =IF(Z31<>0,IFERROR(Z31/W16, "ERROR!"), "0%") -> 0.001818319996
E33: G.S.T. This Claim | N33: =N31*0.05 -> 856.4271808 | U33: =U31*0.05 -> 775
E35: Total Payable This Claim | N35: =N33+N31 -> 17984.9708
A37: =spellnumber(N35) -> Seventeen Thousand Nine Hundred Eighty Four Dollars and Ninety Seven Cents
A39: Certificate of Supplier
A40: I certify that:
A41: 1. All authorizations required under the Subcontract have been obtained. The claim is consistent with the progress of the work and is in accordance
A42: with the Subcontract.
A43: 2. Indirect costs have been paid for or accrued in the accounts. Direct labour costs, direct materials and other direct costs under Subcontract have been
A44: received, accepted and either paid or accrued in my/our accounts following receipt of invoice from Supplier, and have been incurred exclusively for
A45: the purpose of the contract.
A46: 3. This claim is based on costs computed in accordance with Contract Cost Principles 1031-2, and includes the applicable negotiated amount of profit as set
A47: out in the Subcontract Rate Table for Basis of Payment. Further, it does not include an element of profit on the sale in excess of that normally obtained by the
A48: Supplier on the sale of services of like quality and quantity
A49: 3. No liens, encumbrances, charges or other claims exist with respect to any materials, parts, work-in-process, or finished work for which the Supplier
A50: intends to claim payment
K53: Date | X53: Supplier's Signature

Sheet A-Work Complete
A1: Project | E1: ='Payment Claim'!E4 -> [Project Name] | W1: SPC No. | AA1: ='Payment Claim'!W4 -> [Insert Phase-MMM-YY} e.g. BDD-Jan-17 | AR1: All Amounts in $CAD
A2: Phase | E2: ='Payment Claim'!E5 -> [Project Phase]
A3: Supplier (SC) | E3: ='Payment Claim'!E6 -> [Company Name] | W3: Date | AA3: ='Payment Claim'!W6 -> 2017-04-04
A4: SC's Repres. | E4: ='Payment Claim'!E7 -> [SC's Representative] | W4: Ref. No. | AA4: ='Payment Claim'!W7 -> [Contract #]-SPC-[Insert Phase-MMM-YY} e.g. BDD-Jan-17
A5: A.1) Work Complete - Unit Rate Basis
A7: Item | C7: Description | K7: Basis of Payment | P7: Current Month | AJ7: Previous Month(s) | BB7: Total Work Done
P8: Regular | X8: Travel | AD8: Total | AJ8: Regular | AP8: Travel | AV8: Total | BB8: Regular Hours | BI8: Travel | BO8: Total
K9: UOM | M9: Rate | P9: Hours (qty.) | T9: Amount | X9: Hours (qty.) | Z9: Amount | AD9: Hours (qty.) | AF9: Amount | AJ9: Hours (qty.) | AL9: Amount | AP9: Hours (qty.) | AR9: Amount | AV9: Hours (qty.) | AX9: Amount | BB9: Hours (qty.) | BE9: Amount | BI9: Hours (qty.) | BK9: Amount | BO9: Hours (qty.) | BQ9: Amount
A10: 1 | C10: ='Rates Schedule'!A8 -> CAT. 1 2016 | K10: hr | M10: =IFERROR(VLOOKUP(C10,'Rates Schedule'!A1:V44,20,'Rates Schedule'!A1:V44), "") -> 100 | P10: 50 | T10: =IF(P10>0, P10*M10, "") -> 5000 | X10: 80 | Z10: =IF(X10>0, X10*(M10), "") -> 8000 | AD10: =IF(X10+P10=0, "", X10+P10) -> 130 | AF10: =IFERROR(T10+Z10, "") -> 13000 | AJ10: 75 | AL10: =IF(AJ10>0, AJ10*M10, "") -> 7500 | AP10: 80 | AR10: =IF(AP10>0, AP10*M10, "") -> 8000 | AV10: =IF(AP10+AJ10=0, "", AP10+AJ10) -> 155 | AX10: =IFERROR(AL10+AR10, "") -> 15500 | BB10: =IF(P10+AJ10>0, P10+AJ10, "") -> 125 | BE10: =IFERROR(IF(BB10>0,BB10*M10, ""), "") -> 12500 | BI10: =IF(X10+AP10>0, X10+AP10, "") -> 160 | BK10: =IFERROR(IF(BI10>0,BI10*M10, ""), "") -> 16000 | BO10: =IFERROR(IF(BI10+BB10=0, "", BI10+BB10), "") -> 285 | BQ10: =IFERROR(BE10+BK10, "") -> 28500 | BZ10: Update this part every month, if applciable
A11: 2 | C11: ='Rates Schedule'!A9 -> CAT. 2 2016 | K11: hr | M11: =IFERROR(VLOOKUP(C11,'Rates Schedule'!A1:V44,20,'Rates Schedule'!A1:V44), "") -> 0 | T11: =IF(P11>0, P11*M11, "") ->  | Z11: =IF(X11>0, X11*G11, "") ->  | AD11: =IF(X11+P11=0, "", X11+P11) ->  | AF11: =IFERROR(T11+Z11, "") ->  | AL11: =IF(AJ11>0, AJ11*M11, "") ->  | AR11: =IF(AP11>0, AP11*S11, "") ->  | AV11: =IF(AP11+AJ11=0, "", AP11+AJ11) ->  | AX11: =IFERROR(AL11+AR11, "") ->  | BB11: =IF(P11+AJ11>0, P11+AJ11, "") ->  | BE11: =IFERROR(IF(BB11>0,BB11*M11, ""), "") ->  | BI11: =IF(X11+AP11>0, X11+AP11, "") ->  | BK11: =IFERROR(IF(BI11>0,BI11*M11, ""), "") ->  | BO11: =IFERROR(IF(BI11+BB11=0, "", BI11+BB11), "") ->  | BQ11: =IFERROR(BE11+BK11, "") -> 
A12: 3 | C12: ='Rates Schedule'!A10 -> CAT. 3 2016 | K12: hr | M12: =IFERROR(VLOOKUP(C12,'Rates Schedule'!A2:V45,20,'Rates Schedule'!A2:V45), "") -> 0
A13: 4 | C13: ='Rates Schedule'!A11 -> CAT. 4 2016 | K13: hr | M13: =IFERROR(VLOOKUP(C13,'Rates Schedule'!A3:V46,20,'Rates Schedule'!A3:V46), "") -> 0
A14: 5 | C14: ='Rates Schedule'!A12 -> CAT. 5 2016 | K14: hr | M14: =IFERROR(VLOOKUP(C14,'Rates Schedule'!A4:V47,20,'Rates Schedule'!A4:V47), "") -> 0 | AD14: =IF(X14+P14=0, "", X14+P14) ->  | AX14: =IFERROR(AL14+AR14, "") -> 
A15: 6 | C15: ='Rates Schedule'!A13 -> CAT. 6 2016 | K15: hr | M15: =IFERROR(VLOOKUP(C15,'Rates Schedule'!A5:V48,20,'Rates Schedule'!A5:V48), "") -> 0 | AF15: =IFERROR(T15+Z15, "") -> 
A16: 7 | C16: ='Rates Schedule'!A14 -> CAT. 1 2017 | K16: hr | M16: =IFERROR(VLOOKUP(C16,'Rates Schedule'!A6:V49,20,'Rates Schedule'!A6:V49), "") -> 0
A17: 8 | C17: ='Rates Schedule'!A15 -> CAT. 2 2017 | K17: hr | M17: =IFERROR(VLOOKUP(C17,'Rates Schedule'!A7:V50,20,'Rates Schedule'!A7:V50), "") -> 0
A18: 9 | C18: ='Rates Schedule'!A16 -> CAT. 3 2017 | K18: hr | M18: =IFERROR(VLOOKUP(C18,'Rates Schedule'!A8:V51,20,'Rates Schedule'!A8:V51), "") -> 0
A19: 10 | C19: ='Rates Schedule'!A17 -> CAT. 4 2017 | K19: hr | M19: =IFERROR(VLOOKUP(C19,'Rates Schedule'!A2:V45,20,'Rates Schedule'!A2:V45), "") -> 0
A20: 11 | C20: ='Rates Schedule'!A18 -> CAT. 5 2017 | K20: hr | M20: =IFERROR(VLOOKUP(C20,'Rates Schedule'!A3:V46,20,'Rates Schedule'!A3:V46), "") -> 0
A21: 12 | C21: ='Rates Schedule'!A19 -> CAT. 6 2017 | K21: hr | M21: =IFERROR(VLOOKUP(C21,'Rates Schedule'!A4:V47,20,'Rates Schedule'!A4:V47), "") -> 0
A22: 13 | C22: ='Rates Schedule'!A20 -> 0 | K22: hr | M22: =IFERROR(VLOOKUP(C22,'Rates Schedule'!A5:V48,20,'Rates Schedule'!A5:V48), "") -> 
A23: 14 | C23: ='Rates Schedule'!A21 -> 0 | K23: hr | M23: =IFERROR(VLOOKUP(C23,'Rates Schedule'!A6:V49,20,'Rates Schedule'!A6:V49), "") -> 
A24: 15 | C24: ='Rates Schedule'!A22 -> 0 | K24: hr | M24: =IFERROR(VLOOKUP(C24,'Rates Schedule'!A7:V50,20,'Rates Schedule'!A7:V50), "") -> 
A25: 16 | C25: ='Rates Schedule'!A23 -> 0 | K25: hr | M25: =IFERROR(VLOOKUP(C25,'Rates Schedule'!A8:V51,20,'Rates Schedule'!A8:V51), "") -> 
A26: 17 | C26: ='Rates Schedule'!A24 -> 0 | K26: hr | M26: =IFERROR(VLOOKUP(C26,'Rates Schedule'!A9:V52,20,'Rates Schedule'!A9:V52), "") -> 
A27: 18 | C27: ='Rates Schedule'!A25 -> 0 | K27: hr | M27: =IFERROR(VLOOKUP(C27,'Rates Schedule'!A10:V53,20,'Rates Schedule'!A10:V53), "") -> 
A28: 19 | C28: ='Rates Schedule'!A26 -> 0 | K28: hr | M28: =IFERROR(VLOOKUP(C28,'Rates Schedule'!A11:V54,20,'Rates Schedule'!A11:V54), "") -> 
A29: 20 | C29: ='Rates Schedule'!A27 -> 0 | K29: hr | M29: =IFERROR(VLOOKUP(C29,'Rates Schedule'!A12:V55,20,'Rates Schedule'!A12:V55), "") -> 
A30: 21 | C30: ='Rates Schedule'!A28 -> 0 | K30: hr | M30: =IFERROR(VLOOKUP(C30,'Rates Schedule'!A13:V56,20,'Rates Schedule'!A13:V56), "") -> 
A31: 22 | C31: ='Rates Schedule'!A29 -> 0 | K31: hr | M31: =IFERROR(VLOOKUP(C31,'Rates Schedule'!A14:V57,20,'Rates Schedule'!A14:V57), "") -> 
A32: 23 | C32: ='Rates Schedule'!A30 -> 0 | K32: hr | M32: =IFERROR(VLOOKUP(C32,'Rates Schedule'!A15:V58,20,'Rates Schedule'!A15:V58), "") -> 
A33: 24 | C33: ='Rates Schedule'!A31 -> 0 | K33: hr | M33: =IFERROR(VLOOKUP(C33,'Rates Schedule'!A16:V59,20,'Rates Schedule'!A16:V59), "") -> 
A34: 25 | C34: ='Rates Schedule'!A32 -> 0 | K34: hr | M34: =IFERROR(VLOOKUP(C34,'Rates Schedule'!A17:V60,20,'Rates Schedule'!A17:V60), "") -> 
A35: 26 | C35: ='Rates Schedule'!A33 -> 0 | K35: hr | M35: =IFERROR(VLOOKUP(C35,'Rates Schedule'!A18:V61,20,'Rates Schedule'!A18:V61), "") -> 
A36: 27 | C36: ='Rates Schedule'!A34 -> 0 | K36: hr | M36: =IFERROR(VLOOKUP(C36,'Rates Schedule'!A19:V62,20,'Rates Schedule'!A19:V62), "") -> 
A37: 28 | C37: ='Rates Schedule'!A35 -> 0 | K37: hr | M37: =IFERROR(VLOOKUP(C37,'Rates Schedule'!A20:V63,20,'Rates Schedule'!A20:V63), "") -> 
A38: 29 | C38: ='Rates Schedule'!A36 -> 0 | K38: hr | M38: =IFERROR(VLOOKUP(C38,'Rates Schedule'!A21:V64,20,'Rates Schedule'!A21:V64), "") -> 
A39: 30 | C39: ='Rates Schedule'!A37 -> 0 | K39: hr | M39: =IFERROR(VLOOKUP(C39,'Rates Schedule'!A22:V65,20,'Rates Schedule'!A22:V65), "") -> 
A40: Totals: | P40: =SUM(P10:S39) -> 50 | T40: =SUM(T10:W39) -> 5000 | X40: =SUM(X10:Y39) -> 80 | Z40: =SUM(Z10:AC39) -> 8000 | AD40: =SUM(AD10:AE39) -> 130 | AF40: =SUM(AF10:AI39) -> 13000 | AJ40: =SUM(AJ10:AK39) -> 75 | AL40: =SUM(AL10:AO39) -> 7500 | AP40: =SUM(AP10:AQ39) -> 80 | AR40: =SUM(AR10:AU39) -> 8000 | AV40: =SUM(AV10:AW39) -> 155 | AX40: =SUM(AX10:BA39) -> 15500 | BB40: =SUM(BB10:BD39) -> 125 | BE40: =SUM(BE10:BH39) -> 12500 | BI40: =SUM(BI10:BJ39) -> 160 | BK40: =SUM(BK10:BN39) -> 16000 | BO40: =SUM(BO10:BP39) -> 285 | BQ40: =SUM(BQ10:BT39) -> 28500
A41: A.2) Work Complete - Milestone Basis (GOODS ONLY)
A43: Item | C43: Description | K43: Basis of Payment | S43: Current Month | X43: Previous Month(s) | AD43: Previous Month(s) | AJ43: Previous Month(s) | AP43: Total Work Done | AW43: Previous Month(s) | BC43: Previous Month(s)
K44: Value | S44: % Comp. | U44: Amount | X44: % Comp. | Z44: Amount | AD44: % Comp. | AF44: Amount | AJ44: % Comp. | AL44: Amount | AP44: % Comp. | AS44: Amount | AW44: % Comp. | AY44: Amount | BC44: % Comp. | BE44: Amount
A45: 1 | U45: =IF(S45=1, IF(X45<>1, K45, ""), "") ->  | Z45: =IF(X45=1,K45,"") ->  | AF45: =IF(AD45=1,Q45,"") ->  | AL45: =IF(AJ45=1,W45,"") ->  | AP45: =S45 -> 0 | AS45: =IF(AP45=1, K45, "") ->  | AY45: =IF(AW45=1,X45,"") ->  | BE45: =IF(BC45=1,AD45,"") ->  | BZ45: Update this part every month, if applicable
A46: 2 | AP46: 0
A47: 3 | AP47: 0
A48: 4 | AP48: 0
A49: 5 | AP49: 0
A50: 6 | AP50: 0
A51: 7 | AP51: 0
A52: 8 | AP52: 0
A53: 9 | AP53: 0
A54: 10 | AP54: 0
A55: 11 | AP55: 0
A56: 12 | AP56: 0
A57: 13 | AP57: 0
A58: 14 | AP58: 0
A59: 15 | AP59: 0
A60: Totals: | U60: =SUM(U45:W59) -> 0 | Z60: =SUM(Z45:AC59) -> 0 | AF60: =SUM(AF45:AI59) -> 0 | AL60: =SUM(AL45:AO59) -> 0 | AS60: =SUM(AS45:AV59) -> 0 | AY60: =SUM(AY45:BB59) -> 0 | BE60: =SUM(BE45:BH59) -> 0
A61: ="All amounts in "&'Payment Claim'!E15&"." -> All amounts in CAD.

Sheet B-Variation
A1: Project | E1: ='Payment Claim'!E4 -> [Project Name] | Q1: SPC No. | U1: ='Payment Claim'!W4 -> [Insert Phase-MMM-YY} e.g. BDD-Jan-17 | AS1: Updates Automatically from Payment Claim Sheet
A2: Phase | E2: ='Payment Claim'!E5 -> [Project Phase]
A3: Supplier (SC) | E3: ='Payment Claim'!E6 -> [Company Name] | Q3: Date | U3: ='Payment Claim'!W6 -> 2017-04-04
A4: SC's Repres. | E4: ='Payment Claim'!E7 -> [SC's Representative] | Q4: Ref. No. | U4: ='Payment Claim'!W7 -> [Contract #]-SPC-[Insert Phase-MMM-YY} e.g. BDD-Jan-17
A5: B) Variation(s) Summary
A7: Item | C7: Change Orders | K7: Approved (Y/N) | N7: Value ($) | T7: LOE (Y/N) | V7: Current Month | AA7: Previous Month(s) | AG7: Total Non-LOE Work Done
V8: % Comp. | X8: Amount | AA8: % Comp. | AC8: Amount | AG8: % Comp. | AJ8: Amount
A9: 1 | X9: =IF(BK9="N", IF(V9=1, IF(AA9<>1, N9, ""), ""), "") ->  | AC9: =IF(BK9="N", IF(AA9=1,N9,""), "") ->  | AG9: =IF(V9>0, V9, "") ->  | AJ9: =IF(AG9=1, N9, "") ->  | AO9: =IF(AA9=1, IF(V9<>AA9, "ERROR!", ""), "") ->  | AS9: Update this part every month. | BK9: =IF(T9="N", IF(K9="Y", "N", ""), "") -> 
A10: 2 | AG10: =IF(V10>0, V10, "") -> 
A11: 3
A12: 4 | AO12: =IF(AA12=1, IF(V12<>AA12, "ERROR!", ""), "") -> 
A13: 5 | AJ13: =IF(AG13=1, N13, "") -> 
A14: 6
A15: 7
A16: 8
A17: 9
A18: 10
A19: 11 | BK19: =IF(T19="N", IF(K19="Y", "N", ""), "") -> 
A20: 12
A21: 13
A22: 14
A23: 15
A24: 16
A25: 17
A26: 18
A27: 19
A28: 20
A29: 21
A30: 22
A31: 23
A32: 24
A33: 25
A34: 26
A35: 27
A36: 28
A37: 29
A38: 30
A39: Limitation of Expenditure (LOE) (Sub-total): | N39: =SUMIFS(N9:N38,T9:T38, "Y", K9:K38, "Y") -> 0
A40: Other (Sub-total): | N40: =SUMIFS(N9:N38,T9:T38, "N", K9:K38, "Y") -> 0
A41: Total Value Approved: | N41: =SUM(N39:S40) -> 0 | T41: Totals: | X41: =SUM(X9:Z38) -> 0 | AC41: =SUM(AC9:AF38) -> 0 | AJ41: =SUM(AJ9:AM38) -> 0
A42: ="All amounts in "&'Payment Claim'!E15&"." -> All amounts in CAD.

Sheet C-Backcharges
A1: Project | E1: ='Payment Claim'!E4 -> [Project Name] | S1: SPC No. | W1: ='Payment Claim'!W4 -> [Insert Phase-MMM-YY} e.g. BDD-Jan-17 | AP1: Updates Automatically from Payment Claim Sheet
A2: Phase | E2: ='Payment Claim'!E5 -> [Project Phase]
A3: Supplier (SC) | E3: ='Payment Claim'!E6 -> [Company Name] | S3: Date | W3: ='Payment Claim'!W6 -> 2017-04-04
A4: SC's Repres. | E4: ='Payment Claim'!E7 -> [SC's Representative] | S4: Ref. No. | W4: ='Payment Claim'!W7 -> [Contract #]-SPC-[Insert Phase-MMM-YY} e.g. BDD-Jan-17
A5: C) Backcharges/Set-off
A7: Item | C7: Description | S7: Current Month | Y7: Previous Month(s) | AE7: Total
A8: 1 | AE8: =IF(SUM(S8:AD8)<>0, SUM(S8:AD8),"") ->  | AP8: Update this part every month.
A9: 2 | AE9: =IF(SUM(S9:AD9)<>0, SUM(S9:AD9), "") -> 
A10: 3 | AE10: =IF(SUM(S10:AD10)<>0, SUM(S10:AD10), "") -> 
A11: 4
A12: 5
A13: 6
A14: 7
A15: 8
A16: 9
A17: 10
A18: 11
A19: 12
A20: 13
A21: 14
A22: 15 | AE22: =IF(SUM(S22:AD22)<>0, SUM(S22:AD22), "") -> 
A23: Total: | S23: =SUM(S8:X22)*-1 -> 0 | Y23: =SUM(Y8:AD22)*-1 -> 0 | AE23: =SUM(AE8:AJ22)*-1 -> 0
A24: ="All amounts in "&'Payment Claim'!E15&"." -> All amounts in CAD.

Sheet D-Travel & Living
A1: Project | E1: ='Payment Claim'!E4 -> [Project Name] | S1: SPC No. | W1: ='Payment Claim'!W4 -> [Insert Phase-MMM-YY} e.g. BDD-Jan-17 | AO1: Updates Automatically from Payment Claim Sheet
A2: Phase | E2: ='Payment Claim'!E5 -> [Project Phase]
A3: Supplier (SC) | E3: ='Payment Claim'!E6 -> [Company Name] | S3: Date | W3: ='Payment Claim'!W6 -> 2017-04-04
A4: SC's Repres. | E4: ='Payment Claim'!E7 -> [SC's Representative] | S4: Ref. No. | W4: ='Payment Claim'!W7 -> [Contract #]-SPC-[Insert Phase-MMM-YY} e.g. BDD-Jan-17
A5: D.1) Travel & Living Budget | BS5: National Joint Directive - Meal & Incidental Rates
CL6: Update this as new National Joint Council rates are issued
A7: 0 | C7: Original Budget Allocation | S7: 74950 | AO7: VSY to enter value. If blank, please contact your Subcontracting Authority | BS7: As of 1-Oct-16
A8: Approved Additional Budget | BS8: Breakfast | CC8: 17.15
A9: Item | C9: Reference # | S9: Value ($) | BS9: Lunch | CC9: 18.05
A10: 1 | C10: Ref.-No. XYZ456 | AO10: Update this part every month - attach supporting approval documentation | BS10: Dinner | CC10: 45.95
A11: 2 | C11: Ref.-No. XYZ456 | BS11: Incidentals | CC11: 17.3
A12: 3 | C12: Ref.-No. XYZ456
A13: 4 | C13: Ref.-No. XYZ456
A14: 5 | C14: Ref.-No. XYZ456
A15: 6 | C15: Ref.-No. XYZ456
A16: Total: | S16: =SUM(S7:X15) -> 74950
A17: D.2) Travel & Living Expense (Current Month)
A19: Travel Request # | F19: Name, Individual | L19: Trip Details | Y19: AIRFARE | AD19: HOTEL | AN19: MEALS + INCIDENTALS | AV19: TRANSPORTATION | BR19: OTHER | BV19: Description | CB19: TOTAL CLAIMABLE#
AV20: Personal* | BE20: Taxi* | BI20: Car Rental
A21: e.g. JSS-FD-063 | F21: Bruce Wayne | L21: From: | N21: Ontario | S21: To: | U21: British Columbia | Y21: 894 | AD21: =IFERROR(U22-N22, 0) -> 11 | AF21: nights | AH21: @ | AI21: =IFERROR(AD22/AD21, 0) -> 98.63636364 | AL21: / night | AN21: 10 | AO21: : B | AP21: 11 | AQ21: : L | AR21: 20 | AS21: :D | AT21: 10 | AU21: :I | AV21: 100 | AY21: km @ | BA21: 55.5 | BC21: ¢/km, | BE21: 0 | BI21: mid-size | BM21: =IFERROR(BI22/(AD21+1), 0) -> 59 | BP21: / day | BR21: 0 | BV21: e.g. Fuel | CB21: =BR22+BA22+BE21+AQ22+Y21+AD22+BI22+BR21 -> 4128.543616 | CL21: Update this part every month.
L22: Start: | N22: 2017-06-12 | S22: End: | U22: 2017-06-23 | AD22: 1085 | AN22: Tax Rate: | AP22: 0.05 | AQ22: =IFERROR(IF(AD21>30,(((AN21*CC8)+(AP21*CC9)+(AR21*CC10)+(AT21*CC11))/(1+AP22))*0.75,((AN21*CC8)+(AP21*CC9)+(AR21*CC10)+(AT21*CC11))/(1+AP22)),0) -> 1392.428571 | AV22: Tax Rate: | AY22: 0.13 | BA22: =IFERROR((AV21*(BA21/100))/(1+AY22), 0) -> 49.11504425 | BI22: 708 | BR22: 0 | BV22: e.g.. Parking
L23: From: | N23: [province origin] | S23: To: | U23: [province destination] | Y23: 0 | AD23: =IFERROR(U24-N24, 0) -> 0 | AF23: nights | AH23: @ | AI23: =IFERROR(AD24/AD23, 0) -> 0 | AL23: / night | AN23: # | AO23: : B | AP23: # | AQ23: : L | AR23: # | AS23: :D | AT23: # | AU23: :I | AV23: # | AY23: km @ | BA23: # | BC23: ¢/km, | BE23: 0 | BI23: mid-size | BM23: =IFERROR(BI24/(AD23+1), 0) -> 0 | BP23: / day | BR23: 0 | CB23: =BR24+BA24+BE23+AQ24+Y23+AD24+BI24+BR23 -> 0
L24: Start: | N24: [DD-Mmm-YY] | S24: End: | U24: [DD-Mmm-YY] | AD24: 0 | AN24: Tax Rate: | AP24: % | AQ24: =IFERROR(IF(AD23>30,(((AN23*CC10)+(AP23*CC11)+(AR23*CC12)+(AT23*CC13))/(1+#REF!))*0.75,((AN23*CC10)+(AP23*CC11)+(AR23*CC12)+(AT23*CC13))/(1+AP24)),0) -> 0 | AV24: Tax Rate: | BA24: =IFERROR((AV23*(BA23/100))/(1+AY24), 0) -> 0 | BI24: 0 | BR24: 0
L25: From: | N25: [province origin] | S25: To: | U25: [province destination] | Y25: 0 | AD25: =IFERROR(U26-N26, 0) -> 0 | AF25: nights | AH25: @ | AI25: =IFERROR(AD26/AD25, 0) -> 0 | AL25: / night | AN25: # | AO25: : B | AP25: # | AQ25: : L | AR25: # | AS25: :D | AT25: # | AU25: :I | AV25: # | AY25: km @ | BA25: # | BC25: ¢/km, | BE25: 0 | BI25: mid-size | BM25: =IFERROR(BI26/(AD25+1), 0) -> 0 | BP25: / day | BR25: 0 | CB25: =BR26+BA26+BE25+AQ26+Y25+AD26+BI26+BR25 -> 0
L26: Start: | N26: [DD-Mmm-YY] | S26: End: | U26: [DD-Mmm-YY] | AD26: 0 | AN26: Tax Rate: | AP26: % | AQ26: =IFERROR(IF(AD25>30,(((AN25*CC12)+(AP25*CC13)+(AR25*CC14)+(AT25*CC15))/(1+#REF!))*0.75,((AN25*CC12)+(AP25*CC13)+(AR25*CC14)+(AT25*CC15))/(1+AP26)),0) -> 0 | AV26: Tax Rate: | BA26: =IFERROR((AV25*(BA25/100))/(1+AY26), 0) -> 0 | BI26: 0 | BR26: 0
L27: From: | N27: [province origin] | S27: To: | U27: [province destination] | Y27: 0 | AD27: =IFERROR(U28-N28, 0) -> 0 | AF27: nights | AH27: @ | AI27: =IFERROR(AD28/AD27, 0) -> 0 | AL27: / night | AN27: # | AO27: : B | AP27: # | AQ27: : L | AR27: # | AS27: :D | AT27: # | AU27: :I | AV27: # | AY27: km @ | BA27: # | BC27: ¢/km, | BE27: 0 | BI27: mid-size | BM27: =IFERROR(BI28/(AD27+1), 0) -> 0 | BP27: / day | BR27: 0 | CB27: =BR28+BA28+BE27+AQ28+Y27+AD28+BI28+BR27 -> 0
L28: Start: | N28: [DD-Mmm-YY] | S28: End: | U28: [DD-Mmm-YY] | AD28: 0 | AN28: Tax Rate: | AP28: % | AQ28: =IFERROR(IF(AD27>30,(((AN27*CC14)+(AP27*CC15)+(AR27*CC16)+(AT27*CC17))/(1+#REF!))*0.75,((AN27*CC14)+(AP27*CC15)+(AR27*CC16)+(AT27*CC17))/(1+AP28)),0) -> 0 | AV28: Tax Rate: | BA28: =IFERROR((AV27*(BA27/100))/(1+AY28), 0) -> 0 | BI28: 0 | BR28: 0
L29: From: | N29: [province origin] | S29: To: | U29: [province destination] | Y29: 0 | AD29: =IFERROR(U30-N30, 0) -> 0 | AF29: nights | AH29: @ | AI29: =IFERROR(AD30/AD29, 0) -> 0 | AL29: / night | AN29: # | AO29: : B | AP29: # | AQ29: : L | AR29: # | AS29: :D | AT29: # | AU29: :I | AV29: # | AY29: km @ | BA29: # | BC29: ¢/km, | BE29: 0 | BI29: mid-size | BM29: =IFERROR(BI30/(AD29+1), 0) -> 0 | BP29: / day | BR29: 0 | CB29: =BR30+BA30+BE29+AQ30+Y29+AD30+BI30+BR29 -> 0
L30: Start: | N30: [DD-Mmm-YY] | S30: End: | U30: [DD-Mmm-YY] | AD30: 0 | AN30: Tax Rate: | AP30: % | AQ30: =IFERROR(IF(AD29>30,(((AN29*CC16)+(AP29*CC17)+(AR29*CC18)+(AT29*CC19))/(1+#REF!))*0.75,((AN29*CC16)+(AP29*CC17)+(AR29*CC18)+(AT29*CC19))/(1+AP30)),0) -> 0 | AV30: Tax Rate: | BA30: =IFERROR((AV29*(BA29/100))/(1+AY30), 0) -> 0 | BI30: 0 | BR30: 0
L31: From: | N31: [province origin] | S31: To: | U31: [province destination] | Y31: 0 | AD31: =IFERROR(U32-N32, 0) -> 0 | AF31: nights | AH31: @ | AI31: =IFERROR(AD32/AD31, 0) -> 0 | AL31: / night | AN31: # | AO31: : B | AP31: # | AQ31: : L | AR31: # | AS31: :D | AT31: # | AU31: :I | AV31: # | AY31: km @ | BA31: # | BC31: ¢/km, | BE31: 0 | BI31: mid-size | BM31: =IFERROR(BI32/(AD31+1), 0) -> 0 | BP31: / day | BR31: 0 | CB31: =BR32+BA32+BE31+AQ32+Y31+AD32+BI32+BR31 -> 0
L32: Start: | N32: [DD-Mmm-YY] | S32: End: | U32: [DD-Mmm-YY] | AD32: 0 | AN32: Tax Rate: | AP32: % | AQ32: =IFERROR(IF(AD31>30,(((AN31*CC18)+(AP31*CC19)+(AR31*CC20)+(AT31*CC21))/(1+#REF!))*0.75,((AN31*CC18)+(AP31*CC19)+(AR31*CC20)+(AT31*CC21))/(1+AP32)),0) -> 0 | AV32: Tax Rate: | BA32: =IFERROR((AV31*(BA31/100))/(1+AY32), 0) -> 0 | BI32: 0 | BR32: 0
L33: From: | N33: [province origin] | S33: To: | U33: [province destination] | Y33: 0 | AD33: =IFERROR(U34-N34, 0) -> 0 | AF33: nights | AH33: @ | AI33: =IFERROR(AD34/AD33, 0) -> 0 | AL33: / night | AN33: # | AO33: : B | AP33: # | AQ33: : L | AR33: # | AS33: :D | AT33: # | AU33: :I | AV33: # | AY33: km @ | BA33: # | BC33: ¢/km, | BE33: 0 | BI33: mid-size | BM33: =IFERROR(BI34/(AD33+1), 0) -> 0 | BP33: / day | BR33: 0 | CB33: =BR34+BA34+BE33+AQ34+Y33+AD34+BI34+BR33 -> 0
L34: Start: | N34: [DD-Mmm-YY] | S34: End: | U34: [DD-Mmm-YY] | AD34: 0 | AN34: Tax Rate: | AP34: % | AQ34: =IFERROR(IF(AD33>30,(((AN33*CC20)+(AP33*CC21)+(AR33*CC22)+(AT33*CC23))/(1+#REF!))*0.75,((AN33*CC20)+(AP33*CC21)+(AR33*CC22)+(AT33*CC23))/(1+AP34)),0) -> 0 | AV34: Tax Rate: | BA34: =IFERROR((AV33*(BA33/100))/(1+AY34), 0) -> 0 | BI34: 0 | BR34: 0
L35: From: | N35: [province origin] | S35: To: | U35: [province destination] | Y35: 0 | AD35: =IFERROR(U36-N36, 0) -> 0 | AF35: nights | AH35: @ | AI35: =IFERROR(AD36/AD35, 0) -> 0 | AL35: / night | AN35: # | AO35: : B | AP35: # | AQ35: : L | AR35: # | AS35: :D | AT35: # | AU35: :I | AV35: # | AY35: km @ | BA35: # | BC35: ¢/km, | BE35: 0 | BI35: mid-size | BM35: =IFERROR(BI36/(AD35+1), 0) -> 0 | BP35: / day | BR35: 0 | CB35: =BR36+BA36+BE35+AQ36+Y35+AD36+BI36+BR35 -> 0
L36: Start: | N36: [DD-Mmm-YY] | S36: End: | U36: [DD-Mmm-YY] | AD36: 0 | AN36: Tax Rate: | AP36: % | AQ36: =IFERROR(IF(AD35>30,(((AN35*CC22)+(AP35*CC23)+(AR35*CC24)+(AT35*CC25))/(1+#REF!))*0.75,((AN35*CC22)+(AP35*CC23)+(AR35*CC24)+(AT35*CC25))/(1+AP36)),0) -> 0 | AV36: Tax Rate: | BA36: =IFERROR((AV35*(BA35/100))/(1+AY36), 0) -> 0 | BI36: 0 | BR36: 0
L37: From: | N37: [province origin] | S37: To: | U37: [province destination] | Y37: 0 | AD37: =IFERROR(U38-N38, 0) -> 0 | AF37: nights | AH37: @ | AI37: =IFERROR(AD38/AD37, 0) -> 0 | AL37: / night | AN37: # | AO37: : B | AP37: # | AQ37: : L | AR37: # | AS37: :D | AT37: # | AU37: :I | AV37: # | AY37: km @ | BA37: # | BC37: ¢/km, | BE37: 0 | BI37: mid-size | BM37: =IFERROR(BI38/(AD37+1), 0) -> 0 | BP37: / day | BR37: 0 | CB37: =BR38+BA38+BE37+AQ38+Y37+AD38+BI38+BR37 -> 0
L38: Start: | N38: [DD-Mmm-YY] | S38: End: | U38: [DD-Mmm-YY] | AD38: 0 | AN38: Tax Rate: | AP38: % | AQ38: =IFERROR(IF(AD37>30,(((AN37*CC24)+(AP37*CC25)+(AR37*CC26)+(AT37*CC27))/(1+#REF!))*0.75,((AN37*CC24)+(AP37*CC25)+(AR37*CC26)+(AT37*CC27))/(1+AP38)),0) -> 0 | AV38: Tax Rate: | BA38: =IFERROR((AV37*(BA37/100))/(1+AY38), 0) -> 0 | BI38: 0 | BR38: 0
L39: From: | N39: [province origin] | S39: To: | U39: [province destination] | Y39: 0 | AD39: =IFERROR(U40-N40, 0) -> 0 | AF39: nights | AH39: @ | AI39: =IFERROR(AD40/AD39, 0) -> 0 | AL39: / night | AN39: # | AO39: : B | AP39: # | AQ39: : L | AR39: # | AS39: :D | AT39: # | AU39: :I | AV39: # | AY39: km @ | BA39: # | BC39: ¢/km, | BE39: 0 | BI39: mid-size | BM39: =IFERROR(BI40/(AD39+1), 0) -> 0 | BP39: / day | BR39: 0 | CB39: =BR40+BA40+BE39+AQ40+Y39+AD40+BI40+BR39 -> 0
L40: Start: | N40: [DD-Mmm-YY] | S40: End: | U40: [DD-Mmm-YY] | AD40: 0 | AN40: Tax Rate: | AP40: % | AQ40: =IFERROR(IF(AD39>30,(((AN39*CC26)+(AP39*CC27)+(AR39*CC28)+(AT39*CC29))/(1+#REF!))*0.75,((AN39*CC26)+(AP39*CC27)+(AR39*CC28)+(AT39*CC29))/(1+AP40)),0) -> 0 | AV40: Tax Rate: | BA40: =IFERROR((AV39*(BA39/100))/(1+AY40), 0) -> 0 | BI40: 0 | BR40: 0
L41: From: | N41: [province origin] | S41: To: | U41: [province destination] | Y41: 0 | AD41: =IFERROR(U42-N42, 0) -> 0 | AF41: nights | AH41: @ | AI41: =IFERROR(AD42/AD41, 0) -> 0 | AL41: / night | AN41: # | AO41: : B | AP41: # | AQ41: : L | AR41: # | AS41: :D | AT41: # | AU41: :I | AV41: # | AY41: km @ | BA41: # | BC41: ¢/km, | BE41: 0 | BI41: mid-size | BM41: =IFERROR(BI42/(AD41+1), 0) -> 0 | BP41: / day | BR41: 0 | CB41: =BR42+BA42+BE41+AQ42+Y41+AD42+BI42+BR41 -> 0
L42: Start: | N42: [DD-Mmm-YY] | S42: End: | U42: [DD-Mmm-YY] | AD42: 0 | AN42: Tax Rate: | AP42: % | AQ42: =IFERROR(IF(AD41>30,(((AN41*CC28)+(AP41*CC29)+(AR41*CC30)+(AT41*CC31))/(1+#REF!))*0.75,((AN41*CC28)+(AP41*CC29)+(AR41*CC30)+(AT41*CC31))/(1+AP42)),0) -> 0 | AV42: Tax Rate: | BA42: =IFERROR((AV41*(BA41/100))/(1+AY42), 0) -> 0 | BI42: 0 | BR42: 0
L43: From: | N43: [province origin] | S43: To: | U43: [province destination] | Y43: 0 | AD43: =IFERROR(U44-N44, 0) -> 0 | AF43: nights | AH43: @ | AI43: =IFERROR(AD44/AD43, 0) -> 0 | AL43: / night | AN43: # | AO43: : B | AP43: # | AQ43: : L | AR43: # | AS43: :D | AT43: # | AU43: :I | AV43: # | AY43: km @ | BA43: # | BC43: ¢/km, | BE43: 0 | BI43: mid-size | BM43: =IFERROR(BI44/(AD43+1), 0) -> 0 | BP43: / day | BR43: 0 | CB43: =BR44+BA44+BE43+AQ44+Y43+AD44+BI44+BR43 -> 0
L44: Start: | N44: [DD-Mmm-YY] | S44: End: | U44: [DD-Mmm-YY] | AD44: 0 | AN44: Tax Rate: | AP44: % | AQ44: =IFERROR(IF(AD43>30,(((AN43*CC30)+(AP43*CC31)+(AR43*CC32)+(AT43*CC33))/(1+#REF!))*0.75,((AN43*CC30)+(AP43*CC31)+(AR43*CC32)+(AT43*CC33))/(1+AP44)),0) -> 0 | AV44: Tax Rate: | BA44: =IFERROR((AV43*(BA43/100))/(1+AY44), 0) -> 0 | BI44: 0 | BR44: 0
L45: From: | N45: [province origin] | S45: To: | U45: [province destination] | Y45: 0 | AD45: =IFERROR(U46-N46, 0) -> 0 | AF45: nights | AH45: @ | AI45: =IFERROR(AD46/AD45, 0) -> 0 | AL45: / night | AN45: # | AO45: : B | AP45: # | AQ45: : L | AR45: # | AS45: :D | AT45: # | AU45: :I | AV45: # | AY45: km @ | BA45: # | BC45: ¢/km, | BE45: 0 | BI45: mid-size | BM45: =IFERROR(BI46/(AD45+1), 0) -> 0 | BP45: / day | BR45: 0 | CB45: =BR46+BA46+BE45+AQ46+Y45+AD46+BI46+BR45 -> 0
L46: Start: | N46: [DD-Mmm-YY] | S46: End: | U46: [DD-Mmm-YY] | AD46: 0 | AN46: Tax Rate: | AP46: % | AQ46: =IFERROR(IF(AD45>30,(((AN45*CC32)+(AP45*CC33)+(AR45*CC34)+(AT45*CC35))/(1+#REF!))*0.75,((AN45*CC32)+(AP45*CC33)+(AR45*CC34)+(AT45*CC35))/(1+AP46)),0) -> 0 | AV46: Tax Rate: | BA46: =IFERROR((AV45*(BA45/100))/(1+AY46), 0) -> 0 | BI46: 0 | BR46: 0
L47: From: | N47: [province origin] | S47: To: | U47: [province destination] | Y47: 0 | AD47: =IFERROR(U48-N48, 0) -> 0 | AF47: nights | AH47: @ | AI47: =IFERROR(AD48/AD47, 0) -> 0 | AL47: / night | AN47: # | AO47: : B | AP47: # | AQ47: : L | AR47: # | AS47: :D | AT47: # | AU47: :I | AV47: # | AY47: km @ | BA47: # | BC47: ¢/km, | BE47: 0 | BI47: mid-size | BM47: =IFERROR(BI48/(AD47+1), 0) -> 0 | BP47: / day | BR47: 0 | CB47: =BR48+BA48+BE47+AQ48+Y47+AD48+BI48+BR47 -> 0
L48: Start: | N48: [DD-Mmm-YY] | S48: End: | U48: [DD-Mmm-YY] | AD48: 0 | AN48: Tax Rate: | AP48: % | AQ48: =IFERROR(IF(AD47>30,(((AN47*CC34)+(AP47*CC35)+(AR47*CC36)+(AT47*CC37))/(1+#REF!))*0.75,((AN47*CC34)+(AP47*CC35)+(AR47*CC36)+(AT47*CC37))/(1+AP48)),0) -> 0 | AV48: Tax Rate: | BA48: =IFERROR((AV47*(BA47/100))/(1+AY48), 0) -> 0 | BI48: 0 | BR48: 0
L49: From: | N49: [province origin] | S49: To: | U49: [province destination] | Y49: 0 | AD49: =IFERROR(U50-N50, 0) -> 0 | AF49: nights | AH49: @ | AI49: =IFERROR(AD50/AD49, 0) -> 0 | AL49: / night | AN49: # | AO49: : B | AP49: # | AQ49: : L | AR49: # | AS49: :D | AT49: # | AU49: :I | AV49: # | AY49: km @ | BA49: # | BC49: ¢/km, | BE49: 0 | BI49: mid-size | BM49: =IFERROR(BI50/(AD49+1), 0) -> 0 | BP49: / day | BR49: 0 | CB49: =BR50+BA50+BE49+AQ50+Y49+AD50+BI50+BR49 -> 0
L50: Start: | N50: [DD-Mmm-YY] | S50: End: | U50: [DD-Mmm-YY] | AD50: 0 | AN50: Tax Rate: | AP50: % | AQ50: =IFERROR(IF(AD49>30,(((AN49*CC36)+(AP49*CC37)+(AR49*CC38)+(AT49*CC39))/(1+#REF!))*0.75,((AN49*CC36)+(AP49*CC37)+(AR49*CC38)+(AT49*CC39))/(1+AP50)),0) -> 0 | AV50: Tax Rate: | BA50: =IFERROR((AV49*(BA49/100))/(1+AY50), 0) -> 0 | BI50: 0 | BR50: 0
A51: Subtotals: | Y51: =SUM(Y21:AC50) -> 894 | AD51: =SUM(AD50,AD48,AD46,AD44,AD42,AD40,AD38,AD36,AD34,AD32,AD30,AD28,AD26,AD24,AD22) -> 1085 | AN51: =SUM(AN50,AN48,AN46,AN44,AN42,AN40,AN38,AN36,AN34,AN32,AN30,AN28,AN26,AQ24,AQ22) -> 1392.428571 | AV51: =SUM(BA50,BA48,BA46,BA44,BA42,BA40,BA38,BA36,BA34,BA32,BA30,BA28,BA26,BA24,BA22) -> 49.11504425 | BE51: =SUM(BE21:BH49) -> 0 | BI51: =SUM(BI50,BI48,BI46,BI44,BI42,BI40,BI38,BI36,BI34,BI32,BI30,BI28,BI24,BI26,BI22) -> 708 | BR51: =SUM(BR21:BU50) -> 0
A52: Totals: | CB52: =SUM(CB21:CB50) -> 4128.543616
A53: ENTER ALL $ AMOUNTS IN CAD, EXCLUDING ANY GST/HST
A54: *Between work/home and airport terminal
A55: #: Total Amount per travel event which is claimable, i.e. less any GST/HST - the cumulative sum of these amounts is the travel amount claimed this SPC.

Sheet E-Previous Certifications
A1: Project | E1: ='Payment Claim'!E4 -> [Project Name] | W1: SPC No. | AA1: ='Payment Claim'!W4 -> [Insert Phase-MMM-YY} e.g. BDD-Jan-17 | AR1: All Amounts in $CAD
A2: Phase | E2: ='Payment Claim'!E5 -> [Project Phase]
A3: Supplier (SC) | E3: ='Payment Claim'!E6 -> [Company Name] | W3: Date | AA3: ='Payment Claim'!W6 -> 2017-04-04
A4: SC's Repres. | E4: ='Payment Claim'!E7 -> [SC's Representative] | W4: Ref. No. | AA4: ='Payment Claim'!W7 -> [Contract #]-SPC-[Insert Phase-MMM-YY} e.g. BDD-Jan-17
A5: E) Previous Certifications
A7: Payment Claim Ref No. | G7: Purchase Order # | K7: Payment Currency | N7: F/X Rate | Q7: Invoice Currency | T7: Labour Hours | X7: Labour - Previously Certified ($CAD) | BF7: Payment Received (Y/N) | BH7: Goods - Previously Certified ($CAD) | CP7: Payment Received (Y/N) | CR7: Travel & Living - Previously Certified ($CAD) | DU7: Payment Received (Y/N) | DW7: Total Invoiced ($CAD)
X8: Invoice # | AC8: Invoice Date | AH8: Labour | AP8: Holdback | AU8: G.S.T. | AZ8: Invoice Total | BH8: Invoice # | BM8: Invoice Date | BR8: Goods | BZ8: Holdback | CE8: G.S.T. | CJ8: Invoice Total | CR8: Invoice # | CW8: Invoice Date | DB8: Travel & Living | DJ8: G.S.T. | DO8: Invoice Total
A9: [Enter Previous Claim Ref No.] | AP9: =IF($AH$8="Goods", 0, AH9*'Payment Claim'!$E$16) -> 0 | AU9: =AH9*0.05 -> 0 | AZ9: =SUM(AH9:AY9) -> 0 | BZ9: =IF($BR$8="Goods", 0, BR9*'Payment Claim'!$E$16) -> 0 | CE9: =BR9*0.05 -> 0 | CJ9: =SUM(BR9:CI9) -> 0 | DJ9: =DB9*0.05 -> 0 | DO9: =SUM(DB9:DN9) -> 0 | DW9: =SUM(DO9,CJ9,AZ9) -> 0 | ED9: Update this part every month
AP10: =IF($AH$8="Goods", 0, AH10*'Payment Claim'!$E$16) -> 0 | AU10: 0 | AZ10: =SUM(AH10:AY10) -> 0 | BZ10: =IF($BR$8="Goods", 0, BR10*'Payment Claim'!$E$16) -> 0 | CE10: 0 | CJ10: =SUM(BR10:CI10) -> 0 | DJ10: 0 | DO10: 0 | DW10: 0
AP11: =IF($AH$8="Goods", 0, AH11*'Payment Claim'!$E$16) -> 0 | AU11: 0 | AZ11: 0 | BZ11: =IF($BR$8="Goods", 0, BR11*'Payment Claim'!$E$16) -> 0 | CE11: 0 | CJ11: 0 | DJ11: 0 | DO11: 0 | DW11: 0
AP12: =IF($AH$8="Goods", 0, AH12*'Payment Claim'!$E$16) -> 0 | AU12: 0 | AZ12: 0 | BZ12: =IF($BR$8="Goods", 0, BR12*'Payment Claim'!$E$16) -> 0 | CE12: 0 | CJ12: 0 | DJ12: 0 | DO12: 0 | DW12: 0
AP13: =IF($AH$8="Goods", 0, AH13*'Payment Claim'!$E$16) -> 0 | AU13: 0 | AZ13: 0 | BZ13: =IF($BR$8="Goods", 0, BR13*'Payment Claim'!$E$16) -> 0 | CE13: 0 | CJ13: 0 | DJ13: 0 | DO13: 0 | DW13: 0
AP14: =IF($AH$8="Goods", 0, AH14*'Payment Claim'!$E$16) -> 0 | AU14: 0 | AZ14: 0 | BZ14: =IF($BR$8="Goods", 0, BR14*'Payment Claim'!$E$16) -> 0 | CE14: 0 | CJ14: 0 | DJ14: 0 | DO14: 0 | DW14: 0
AP15: =IF($AH$8="Goods", 0, AH15*'Payment Claim'!$E$16) -> 0 | AU15: 0 | AZ15: 0 | BZ15: =IF($BR$8="Goods", 0, BR15*'Payment Claim'!$E$16) -> 0 | CE15: 0 | CJ15: 0 | DJ15: 0 | DO15: 0 | DW15: 0
AP16: =IF($AH$8="Goods", 0, AH16*'Payment Claim'!$E$16) -> 0 | AU16: 0 | AZ16: 0 | BZ16: =IF($BR$8="Goods", 0, BR16*'Payment Claim'!$E$16) -> 0 | CE16: 0 | CJ16: 0 | DJ16: 0 | DO16: 0 | DW16: 0
AP17: =IF($AH$8="Goods", 0, AH17*'Payment Claim'!$E$16) -> 0 | AU17: 0 | AZ17: 0 | BZ17: =IF($BR$8="Goods", 0, BR17*'Payment Claim'!$E$16) -> 0 | CE17: 0 | CJ17: 0 | DJ17: 0 | DO17: 0 | DW17: 0
AP18: =IF($AH$8="Goods", 0, AH18*'Payment Claim'!$E$16) -> 0 | AU18: 0 | AZ18: 0 | BZ18: =IF($BR$8="Goods", 0, BR18*'Payment Claim'!$E$16) -> 0 | CE18: 0 | CJ18: 0 | DJ18: 0 | DO18: 0 | DW18: 0
AP19: =IF($AH$8="Goods", 0, AH19*'Payment Claim'!$E$16) -> 0 | AU19: 0 | AZ19: 0 | BZ19: =IF($BR$8="Goods", 0, BR19*'Payment Claim'!$E$16) -> 0 | CE19: 0 | CJ19: 0 | DJ19: 0 | DO19: 0 | DW19: 0
AP20: =IF($AH$8="Goods", 0, AH20*'Payment Claim'!$E$16) -> 0 | AU20: 0 | AZ20: 0 | BZ20: =IF($BR$8="Goods", 0, BR20*'Payment Claim'!$E$16) -> 0 | CE20: 0 | CJ20: 0 | DJ20: 0 | DO20: 0 | DW20: 0
AP21: =IF($AH$8="Goods", 0, AH21*'Payment Claim'!$E$16) -> 0 | AU21: 0 | AZ21: =SUM(AH21:AY21) -> 0 | BZ21: =IF($BR$8="Goods", 0, BR21*'Payment Claim'!$E$16) -> 0 | CE21: 0 | CJ21: =SUM(BR21:CI21) -> 0 | DJ21: 0 | DO21: 0 | DW21: 0
AP22: =IF($AH$8="Goods", 0, AH22*'Payment Claim'!$E$16) -> 0 | AU22: 0 | AZ22: =SUM(AH22:AY22) -> 0 | BZ22: =IF($BR$8="Goods", 0, BR22*'Payment Claim'!$E$16) -> 0 | CE22: 0 | CJ22: =SUM(BR22:CI22) -> 0 | DJ22: 0 | DO22: =SUM(DB22:DN22) -> 0 | DW22: 0
AP23: =IF($AH$8="Goods", 0, AH23*'Payment Claim'!$E$16) -> 0 | AU23: 0 | AZ23: 0 | BZ23: =IF($BR$8="Goods", 0, BR23*'Payment Claim'!$E$16) -> 0 | CE23: 0 | CJ23: 0 | DJ23: 0 | DO23: 0 | DW23: 0
AP24: =IF($AH$8="Goods", 0, AH24*'Payment Claim'!$E$16) -> 0 | AU24: 0 | AZ24: 0 | BZ24: =IF($BR$8="Goods", 0, BR24*'Payment Claim'!$E$16) -> 0 | CE24: 0 | CJ24: 0 | DJ24: 0 | DO24: 0 | DW24: 0
AP25: =IF($AH$8="Goods", 0, AH25*'Payment Claim'!$E$16) -> 0 | AU25: 0 | AZ25: 0 | BZ25: =IF($BR$8="Goods", 0, BR25*'Payment Claim'!$E$16) -> 0 | CE25: 0 | CJ25: 0 | DJ25: 0 | DO25: 0 | DW25: 0
AP26: =IF($AH$8="Goods", 0, AH26*'Payment Claim'!$E$16) -> 0 | AU26: 0 | AZ26: 0 | BZ26: =IF($BR$8="Goods", 0, BR26*'Payment Claim'!$E$16) -> 0 | CE26: 0 | CJ26: 0 | DJ26: 0 | DO26: 0 | DW26: 0
AP27: =IF($AH$8="Goods", 0, AH27*'Payment Claim'!$E$16) -> 0 | AU27: 0 | AZ27: 0 | BZ27: =IF($BR$8="Goods", 0, BR27*'Payment Claim'!$E$16) -> 0 | CE27: 0 | CJ27: 0 | DJ27: 0 | DO27: 0 | DW27: 0
AP28: =IF($AH$8="Goods", 0, AH28*'Payment Claim'!$E$16) -> 0 | AU28: 0 | AZ28: 0 | BZ28: =IF($BR$8="Goods", 0, BR28*'Payment Claim'!$E$16) -> 0 | CE28: 0 | CJ28: 0 | DJ28: 0 | DO28: 0 | DW28: 0
AP29: =IF($AH$8="Goods", 0, AH29*'Payment Claim'!$E$16) -> 0 | AU29: 0 | AZ29: 0 | BZ29: =IF($BR$8="Goods", 0, BR29*'Payment Claim'!$E$16) -> 0 | CE29: 0 | CJ29: 0 | DJ29: 0 | DO29: 0 | DW29: 0
AP30: =IF($AH$8="Goods", 0, AH30*'Payment Claim'!$E$16) -> 0 | AU30: 0 | AZ30: 0 | BZ30: =IF($BR$8="Goods", 0, BR30*'Payment Claim'!$E$16) -> 0 | CE30: 0 | CJ30: 0 | DJ30: 0 | DO30: 0 | DW30: 0
AP31: =IF($AH$8="Goods", 0, AH31*'Payment Claim'!$E$16) -> 0 | AU31: 0 | AZ31: 0 | BZ31: =IF($BR$8="Goods", 0, BR31*'Payment Claim'!$E$16) -> 0 | CE31: 0 | CJ31: 0 | DJ31: 0 | DO31: 0 | DW31: 0
AP32: =IF($AH$8="Goods", 0, AH32*'Payment Claim'!$E$16) -> 0 | AU32: 0 | AZ32: 0 | BZ32: =IF($BR$8="Goods", 0, BR32*'Payment Claim'!$E$16) -> 0 | CE32: 0 | CJ32: 0 | DJ32: 0 | DO32: 0 | DW32: 0
T33: =SUM(T9:W32) -> 0 | X33: Sub-totals: | AH33: =SUM(AH9:AO32) -> 0 | AP33: =SUM(AP9:AT32) -> 0 | AU33: =SUM(AU9:AY32) -> 0 | AZ33: =SUM(AZ9:BE32) -> 0 | BH33: Sub-totals: | BR33: =SUM(BR9:BY32) -> 0 | BZ33: =SUM(BZ9:CD32) -> 0 | CE33: =SUM(CE9:CI32) -> 0 | CJ33: =SUM(CJ9:CO32) -> 0 | CR33: Sub-totals: | DB33: =SUM(DB9:DI32) -> 0 | DJ33: =SUM(DJ9:DN32) -> 0 | DO33: =SUM(DO9:DT32) -> 0 | DW33: =SUM(DW9:EA32) -> 0
A35: =IF(VLOOKUP(AA4,A9:EA32, 132)<>0, "ERROR! - Uncertified payment claim entered", "") ->  | AH35: =IF(AH33<>('A-Work Complete'!AL40), "ERROR! Should = previous months value of unit rate (work complete tab)", "") -> ERROR! Should = previous months value of unit rate (work complete tab) | BR35: =IF(BR33<>'A-Work Complete'!Z60, "ERROR! Should = previous months value of goods (work complete tab)", "") ->  | DB35: =IF(DB33<>'D-Travel & Living'!#REF!, "ERROR! Should = previous months value of Travel & Living tab", "") -> 

Sheet Payment Certificate
AJ1: SUPPLIER PAYMENT CLAIM (SPC)
AJ2: PAYMENT CERTIFICATION
Z4: Purchase Order # | AE4: [Insert PO# Here]
A6: Project | E6: ='Payment Claim'!E4 -> [Project Name] | S6: SPC No. | W6: ='Payment Claim'!W4 -> [Insert Phase-MMM-YY} e.g. BDD-Jan-17 | AP6: Nothing to fill here, everything updates automatically VSY to enter PO# and Invoice #s prior to certification
A7: Phase | E7: ='Payment Claim'!E5 -> [Project Phase]
A8: Supplier (SC) | E8: ='Payment Claim'!E6 -> [Company Name] | S8: Date | W8: ='Payment Claim'!W6 -> 2017-04-04
A9: SC's Repres. | E9: ='Payment Claim'!E7 -> [SC's Representative] | S9: Ref. No. | W9: ='Payment Claim'!W7 -> [Contract #]-SPC-[Insert Phase-MMM-YY} e.g. BDD-Jan-17 | AL9: =IF((VLOOKUP(W9, 'E-Previous Certifications'!A9:DW32, 132))=0, "", "ERROR! Previous Certifications tab") -> 
A10: 1. Contract Details
A12: Subcontract Title | E12: ='Payment Claim'!E10 -> [Contract Title] | S12: Original Unit Basis Value | AA12: ='Payment Claim'!AA10 -> 17869385.26
S13: Original Milestone Value | AA13: ='Payment Claim'!AA11 -> 0
A14: Subcontract No. | E14: ='Payment Claim'!E12 -> [Contract #] | S14: Current Value ($)
A15: Subcontract Start | E15: ='Payment Claim'!E13 -> 2016-12-23 | S15: Work Value | W15: ='Payment Claim'!W13 -> 17869385.26
A16: Subcontract End | E16: ='Payment Claim'!E14 -> 2017-12-22 | S16: Variation(s) Value | W16: ='Payment Claim'!W14 -> 0
A17: Currency | E17: ='Payment Claim'!E15 -> CAD | S17: Travel Value | W17: ='Payment Claim'!W15 -> 74950
A18: Holdback (%) | E18: ='Payment Claim'!E16 -> 0 | S18: Total | W18: ='Payment Claim'!W16 -> 17944335.26
A19: 2. Amount Invoiced This Claim | X19: Previously Invoiced | AD19: Total Invoiced to Date
A21: Labour | J21: Regular Value | S21: ='A-Work Complete'!T40 -> 5000 | X21: ='A-Work Complete'!AL40 -> 7500 | AD21: ='A-Work Complete'!BE40 -> 12500
J22: Travel Value | S22: ='A-Work Complete'!Z40 -> 8000 | X22: ='A-Work Complete'!AR40 -> 8000 | AD22: ='A-Work Complete'!BK40 -> 16000
J24: Total Value | S24: ='Payment Claim'!N20 -> 13000 | X24: ='Payment Claim'!U20 -> 15500 | AD24: ='Payment Claim'!Z20 -> 28500
J25: Holdback This Invoice | S25: =S24*-E18 -> 0 | X25: ='Payment Claim'!U26 -> 0 | AD25: ='Payment Claim'!Z26 -> 0
J26: Backcharges | S26: ='C-Backcharges'!S23:X23 -> 0 | X26: ='C-Backcharges'!Y23 -> 0 | AD26: ='Payment Claim'!Z27 -> 0
J27: G.S.T. This Invoice | S27: =SUM(S24:W26)*0.05 -> 650 | X27: =SUM(X24:AC25)*0.05 -> 775 | AD27: =SUM(AD24:AJ25)*0.05 -> 1425
A28: Invoice # | D28: [Enter Invoice #] | J28: Total Payable This Invoice | S28: =SUM(S24:W27) -> 13650 | X28: =SUM(X24:AC27) -> 16275 | AD28: =SUM(AD24:AJ27) -> 29925
A30: Goods | J30: Total Value | S30: ='Payment Claim'!N21+'Payment Claim'!N23 -> 0 | X30: ='Payment Claim'!U21+'Payment Claim'!U23 -> 0 | AD30: ='Payment Claim'!Z21+'Payment Claim'!Z23 -> 0
J31: Holdback This Invoice | S31: =S30*-E18 -> 0 | X31: =X30*-E18 -> 0 | AD31: =AD30*-E18 -> 0
J32: Backcharges | S32: - | X32: - | AD32: -
J33: G.S.T. This Invoice | S33: =SUM(S30:W31)*0.05 -> 0 | X33: =SUM(X30:AC31)*0.05 -> 0 | AD33: =SUM(AD30:AJ31)*0.05 -> 0
A34: Invoice # | D34: [Enter Invoice #] | J34: Total Payable This Invoice | S34: =SUM(S30:W33) -> 0 | X34: =SUM(X30:AC33) -> 0 | AD34: =SUM(AD30:AJ33) -> 0
A36: Travel & Living | J36: Total Value | S36: ='Payment Claim'!N29 -> 4128.543616 | X36: ='Payment Claim'!U29 -> 0 | AD36: ='Payment Claim'!Z29 -> 4128.543616
J37: Holdback This Invoice | S37: - | X37: - | AD37: -
J38: Backcharges | S38: - | X38: - | AD38: -
J39: G.S.T. This Invoice | S39: =S36*0.05 -> 206.4271808 | X39: =SUM(X36:AC36)*0.05 -> 0 | AD39: =SUM(AD36:AJ36)*0.05 -> 206.4271808
A40: Invoice # | D40: [Enter Invoice #] | J40: Total Payable This Invoice | S40: =SUM(S36:W39) -> 4334.970796 | X40: =SUM(X36:AC39) -> 0 | AD40: =SUM(AD36:AJ39) -> 4334.970796
D42: Net Amount Certified This Claim (excl. taxes) | S42: =SUM(S22:W26,S36:W36) -> 25128.54362 | X42: =SUM(X22:AC26,X30:AC32,X36:AC38) -> 23500 | AD42: =SUM(AD22:AJ26,AD30:AJ32,AD36:AJ38) -> 48628.54362
D44: Total Amount Certified This Claim (incl. taxes) | S44: =SUM(S40,S28,S34) -> 17984.9708
A46: =spellnumber(S44) -> Seventeen Thousand Nine Hundred Eighty Four Dollars and Ninety Seven Cents
A48: Certificate of Payment
A49: I certify that To the best of my knowledge, the claim is consistent with the progress of the work and is in accordance with the contract. This claim, however,
A50: may be subject to further verification and any necessary adjustment before final settlement.
K54: Date | X54: Subcontract Authority
K57: Date | X57: Subcontract Authority - Project Lead

Sheet Rates Schedule
A1: Project | E1: ='Payment Claim'!E4 -> [Project Name] | S1: SPC No. | W1: ='Payment Claim'!W4 -> [Insert Phase-MMM-YY} e.g. BDD-Jan-17 | AP1: As per the subcontract. If a revision is necessary, please contact the subcontract authority.
A2: Phase | E2: ='Payment Claim'!E5 -> [Project Phase]
A3: Supplier (SC) | E3: ='Payment Claim'!E6 -> [Company Name] | S3: Date | W3: ='Payment Claim'!W6 -> 2017-04-04
A4: SC's Repres. | E4: ='Payment Claim'!E7 -> [SC's Representative] | S4: Ref. No. | W4: ='Payment Claim'!W7 -> [Contract #]-SPC-[Insert Phase-MMM-YY} e.g. BDD-Jan-17
A5: Labour Rate Table
A7: Labour Rate Type | E7: Hour Type | I7: Period From | N7: Period To | T7: Regular Billing Rate
A8: CAT. 1 2016 | E8: REG | I8: 2016-01-01 | N8: 2016-12-31 | T8: 100
A9: CAT. 2 2016 | E9: REG | I9: 2016-01-02 | N9: 2017-01-01
A10: CAT. 3 2016 | E10: REG | I10: 2016-01-03 | N10: 2017-01-02
A11: CAT. 4 2016 | E11: REG | I11: 2016-01-04 | N11: 2017-01-03
A12: CAT. 5 2016 | E12: REG | I12: 2016-01-05 | N12: 2017-01-04
A13: CAT. 6 2016 | E13: REG | I13: 2016-01-06 | N13: 2017-01-05
A14: CAT. 1 2017 | E14: REG | I14: 2017-01-01 | N14: 2017-12-31
A15: CAT. 2 2017 | E15: REG | I15: 2017-01-01 | N15: 2017-12-31
A16: CAT. 3 2017 | E16: REG | I16: 2017-01-01 | N16: 2017-12-31
A17: CAT. 4 2017 | E17: REG | I17: 2017-01-01 | N17: 2017-12-31
A18: CAT. 5 2017 | E18: REG | I18: 2017-01-01 | N18: 2017-12-31
A19: CAT. 6 2017 | E19: REG | I19: 2017-01-01 | N19: 2017-12-31
A52: ="All amounts in "&'Payment Claim'!E15&"." -> All amounts in CAD.

Sheet Certificate - Labour
AJ1: SUPPLIER PAYMENT CLAIM (SPC)
AJ2: Labour Certificate
AL3: Period of performance
Z4: Purchase Order # | AE4: ='Payment Certificate'!AE4:AJ4 -> [Insert PO# Here] | AL4: review cut off - month end in SubC.
A6: Project | E6: ='Payment Claim'!E4 -> [Project Name] | S6: SPC No. | W6: ='Payment Claim'!W4 -> [Insert Phase-MMM-YY} e.g. BDD-Jan-17 | AP6: Nothing to fill here, everything updates automatically
A7: Phase | E7: ='Payment Claim'!E5 -> [Project Phase]
A8: Supplier (SC) | E8: ='Payment Claim'!E6 -> [Company Name] | S8: Date | W8: ='Payment Claim'!W6 -> 2017-04-04
A9: SC's Repres. | E9: ='Payment Claim'!E7 -> [SC's Representative] | S9: Ref. No. | W9: ='Payment Claim'!W7 -> [Contract #]-SPC-[Insert Phase-MMM-YY} e.g. BDD-Jan-17 | AL9: =IF((VLOOKUP(W9, 'E-Previous Certifications'!A9:DW32, 132))=0, "", "ERROR! Previous Certifications tab") -> 
A10: 1. Contract Details
A12: Subcontract Title | E12: ='Payment Claim'!E10 -> [Contract Title] | S12: Original Unit Basis Value | AA12: ='Payment Claim'!AA10 -> 17869385.26
S13: Original Milestone Value | AA13: ='Payment Claim'!AA11 -> 0
A14: Subcontract No. | E14: ='Payment Claim'!E12 -> [Contract #] | S14: Current Value ($)
A15: Subcontract Start | E15: ='Payment Claim'!E13 -> 2016-12-23 | S15: Work Value | W15: ='Payment Claim'!W13 -> 17869385.26
A16: Subcontract End | E16: ='Payment Claim'!E14 -> 2017-12-22 | S16: Variation(s) Value | W16: ='Payment Claim'!W14 -> 0
A17: Currency | E17: ='Payment Claim'!E15 -> CAD | S17: Travel Value | W17: ='Payment Claim'!W15 -> 74950
A18: Holdback (%) | E18: ='Payment Claim'!E16 -> 0 | S18: Total | W18: ='Payment Claim'!W16 -> 17944335.26
A19: 2. Amount Invoiced This Claim | X19: Previously Invoiced | AD19: Total Invoiced to Date
A21: Labour | J21: Regular Value | S21: ='A-Work Complete'!T40 -> 5000 | X21: ='A-Work Complete'!AL40 -> 7500 | AD21: ='A-Work Complete'!BE40 -> 12500
J22: Travel Value | S22: ='A-Work Complete'!Z40 -> 8000 | X22: ='A-Work Complete'!AR40 -> 8000 | AD22: ='A-Work Complete'!BK40 -> 16000
J24: Total Value | S24: ='Payment Claim'!N20 -> 13000 | X24: ='Payment Claim'!U20 -> 15500 | AD24: ='Payment Claim'!Z20 -> 28500
J25: Holdback This Invoice | S25: =S24*-E18 -> 0 | X25: ='Payment Claim'!U26 -> 0 | AD25: ='Payment Claim'!Z26 -> 0
J26: Backcharges | S26: ='C-Backcharges'!S23:X23 -> 0 | X26: ='C-Backcharges'!Y23 -> 0 | AD26: ='Payment Claim'!Z27 -> 0
J27: G.S.T. This Invoice | S27: =SUM(S24:W26)*0.05 -> 650 | X27: =SUM(X24:AC25)*0.05 -> 775 | AD27: =SUM(AD24:AJ25)*0.05 -> 1425
A28: Invoice # | D28: ='Payment Certificate'!D28:I28 -> [Enter Invoice #] | J28: Total Payable This Invoice | S28: =SUM(S24:W27) -> 13650 | X28: =SUM(X24:AC27) -> 16275 | AD28: =SUM(AD24:AJ27) -> 29925
A30: Goods | J30: Total Value | S30: ='Payment Claim'!N21+'Payment Claim'!N23 -> 0 | X30: ='Payment Claim'!U21+'Payment Claim'!U23 -> 0 | AD30: ='Payment Claim'!Z21+'Payment Claim'!Z23 -> 0
J31: Holdback This Invoice | S31: =S30*-E18 -> 0 | X31: =X30*-E18 -> 0 | AD31: =AD30*-E18 -> 0
J32: Backcharges | S32: - | X32: - | AD32: -
J33: G.S.T. This Invoice | S33: =SUM(S30:W31)*0.05 -> 0 | X33: =SUM(X30:AC31)*0.05 -> 0 | AD33: =SUM(AD30:AJ31)*0.05 -> 0
A34: Invoice # | D34: ='Payment Certificate'!D34:I34 -> [Enter Invoice #] | J34: Total Payable This Invoice | S34: =SUM(S30:W33) -> 0 | X34: =SUM(X30:AC33) -> 0 | AD34: =SUM(AD30:AJ33) -> 0
A36: Travel & Living | J36: Total Value | S36: ='Payment Claim'!N29 -> 4128.543616 | X36: ='Payment Claim'!U29 -> 0 | AD36: ='Payment Claim'!Z29 -> 4128.543616
J37: Holdback This Invoice | S37: - | X37: - | AD37: -
J38: Backcharges | S38: - | X38: - | AD38: -
J39: G.S.T. This Invoice | S39: =S36*0.05 -> 206.4271808 | X39: =SUM(X36:AC36)*0.05 -> 0 | AD39: =SUM(AD36:AJ36)*0.05 -> 206.4271808
A40: Invoice # | D40: ='Payment Certificate'!D40:I40 -> [Enter Invoice #] | J40: Total Payable This Invoice | S40: =SUM(S36:W39) -> 4334.970796 | X40: =SUM(X36:AC39) -> 0 | AD40: =SUM(AD36:AJ39) -> 4334.970796
D42: Net Amount Certified This Claim (excl. taxes) | S42: =SUM(S24:W26) -> 13000 | X42: =SUM(X24:AC26) -> 15500 | AD42: =SUM(AD24:AJ26) -> 28500
D44: Total Amount Certified This Claim (incl. taxes) | S44: =SUM(S28) -> 13650
A46: =spellnumber(S44) -> Thirteen Thousand Six Hundred Fifty Dollars and No Cents
A48: Certificate of Payment
A49: I certify that To the best of my knowledge, the claim is consistent with the progress of the work and is in accordance with the contract. This claim, however,
A50: may be subject to further verification and any necessary adjustment before final settlement.
K54: Date | X54: Subcontract Authority
K57: Date | X57: Subcontract Authority - Project Lead

Sheet Certificate - Goods
AJ1: SUPPLIER PAYMENT CLAIM (SPC)
AJ2: Goods Certificate
Z4: Purchase Order # | AE4: ='Payment Certificate'!AE4:AJ4 -> [Insert PO# Here]
A6: Project | E6: ='Payment Claim'!E4 -> [Project Name] | S6: SPC No. | W6: ='Payment Claim'!W4 -> [Insert Phase-MMM-YY} e.g. BDD-Jan-17 | AP6: Nothing to fill here, everything updates automatically
A7: Phase | E7: ='Payment Claim'!E5 -> [Project Phase]
A8: Supplier (SC) | E8: ='Payment Claim'!E6 -> [Company Name] | S8: Date | W8: ='Payment Claim'!W6 -> 2017-04-04
A9: SC's Repres. | E9: ='Payment Claim'!E7 -> [SC's Representative] | S9: Ref. No. | W9: ='Payment Claim'!W7 -> [Contract #]-SPC-[Insert Phase-MMM-YY} e.g. BDD-Jan-17 | AL9: =IF((VLOOKUP(W9, 'E-Previous Certifications'!A9:DW32, 132))=0, "", "ERROR! Previous Certifications tab") -> 
A10: 1. Contract Details
A12: Subcontract Title | E12: ='Payment Claim'!E10 -> [Contract Title] | S12: Original Unit Basis Value | AA12: ='Payment Claim'!AA10 -> 17869385.26
S13: Original Milestone Value | AA13: ='Payment Claim'!AA11 -> 0
A14: Subcontract No. | E14: ='Payment Claim'!E12 -> [Contract #] | S14: Current Value ($)
A15: Subcontract Start | E15: ='Payment Claim'!E13 -> 2016-12-23 | S15: Work Value | W15: ='Payment Claim'!W13 -> 17869385.26
A16: Subcontract End | E16: ='Payment Claim'!E14 -> 2017-12-22 | S16: Variation(s) Value | W16: ='Payment Claim'!W14 -> 0
A17: Currency | E17: ='Payment Claim'!E15 -> CAD | S17: Travel Value | W17: ='Payment Claim'!W15 -> 74950
A18: Holdback (%) | E18: ='Payment Claim'!E16 -> 0 | S18: Total | W18: ='Payment Claim'!W16 -> 17944335.26
A19: 2. Amount Invoiced This Claim | X19: Previously Invoiced | AD19: Total Invoiced to Date
A21: Labour | J21: Regular Value | S21: ='A-Work Complete'!T40 -> 5000 | X21: ='A-Work Complete'!AL40 -> 7500 | AD21: ='A-Work Complete'!BE40 -> 12500
J22: Travel Value | S22: ='A-Work Complete'!Z40 -> 8000 | X22: ='A-Work Complete'!AR40 -> 8000 | AD22: ='A-Work Complete'!BK40 -> 16000
J24: Total Value | S24: ='Payment Claim'!N20 -> 13000 | X24: ='Payment Claim'!U20 -> 15500 | AD24: ='Payment Claim'!Z20 -> 28500
J25: Holdback This Invoice | S25: =S24*-E18 -> 0 | X25: ='Payment Claim'!U26 -> 0 | AD25: ='Payment Claim'!Z26 -> 0
J26: Backcharges | S26: ='C-Backcharges'!S23:X23 -> 0 | X26: ='C-Backcharges'!Y23 -> 0 | AD26: ='Payment Claim'!Z27 -> 0
J27: G.S.T. This Invoice | S27: =SUM(S24:W26)*0.05 -> 650 | X27: =SUM(X24:AC25)*0.05 -> 775 | AD27: =SUM(AD24:AJ25)*0.05 -> 1425
A28: Invoice # | D28: ='Payment Certificate'!D28:I28 -> [Enter Invoice #] | J28: Total Payable This Invoice | S28: =SUM(S24:W27) -> 13650 | X28: =SUM(X24:AC27) -> 16275 | AD28: =SUM(AD24:AJ27) -> 29925
A30: Goods | J30: Total Value | S30: ='Payment Claim'!N21+'Payment Claim'!N23 -> 0 | X30: ='Payment Claim'!U21+'Payment Claim'!U23 -> 0 | AD30: ='Payment Claim'!Z21+'Payment Claim'!Z23 -> 0
J31: Holdback This Invoice | S31: =S30*-E18 -> 0 | X31: =X30*-E18 -> 0 | AD31: =AD30*-E18 -> 0 | AL31: Profit
J32: Backcharges | S32: - | X32: - | AD32: -
J33: G.S.T. This Invoice | S33: =SUM(S30:W31)*0.05 -> 0 | X33: =SUM(X30:AC31)*0.05 -> 0 | AD33: =SUM(AD30:AJ31)*0.05 -> 0
A34: Invoice # | D34: ='Payment Certificate'!D34:I34 -> [Enter Invoice #] | J34: Total Payable This Invoice | S34: =SUM(S30:W33) -> 0 | X34: =SUM(X30:AC33) -> 0 | AD34: =SUM(AD30:AJ33) -> 0
A36: Travel & Living | J36: Total Value | S36: ='Payment Claim'!N29 -> 4128.543616 | X36: ='Payment Claim'!U29 -> 0 | AD36: ='Payment Claim'!Z29 -> 4128.543616
J37: Holdback This Invoice | S37: - | X37: - | AD37: -
J38: Backcharges | S38: - | X38: - | AD38: -
J39: G.S.T. This Invoice | S39: =S36*0.05 -> 206.4271808 | X39: =SUM(X36:AC36)*0.05 -> 0 | AD39: =SUM(AD36:AJ36)*0.05 -> 206.4271808
A40: Invoice # | D40: ='Payment Certificate'!D40:I40 -> [Enter Invoice #] | J40: Total Payable This Invoice | S40: =SUM(S36:W39) -> 4334.970796 | X40: =SUM(X36:AC39) -> 0 | AD40: =SUM(AD36:AJ39) -> 4334.970796
D42: Net Amount Certified This Claim (excl. taxes) | S42: =SUM(S30:W32) -> 0 | X42: =SUM(X30:AC32) -> 0 | AD42: =SUM(AD30:AJ32) -> 0
D44: Total Amount Certified This Claim (incl. taxes) | S44: =SUM(S34) -> 0
A46: =spellnumber(S44) -> No Dollars and No Cents
A48: Certificate of Payment
A49: I certify that To the best of my knowledge, the claim is consistent with the progress of the work and is in accordance with the contract. This claim, however,
A50: may be subject to further verification and any necessary adjustment before final settlement.
K54: Date | X54: Subcontract Authority
K57: Date | X57: Subcontract Authority - Project Lead

Sheet Certificate - Travel & Living
AJ1: SUPPLIER PAYMENT CLAIM (SPC)
AJ2: Travel & Living Certificate
Z4: Purchase Order # | AE4: ='Payment Certificate'!AE4:AJ4 -> [Insert PO# Here]
A6: Project | E6: ='Payment Claim'!E4 -> [Project Name] | S6: SPC No. | W6: ='Payment Claim'!W4 -> [Insert Phase-MMM-YY} e.g. BDD-Jan-17 | AP6: Nothing to fill here, everything updates automatically
A7: Phase | E7: ='Payment Claim'!E5 -> [Project Phase]
A8: Supplier (SC) | E8: ='Payment Claim'!E6 -> [Company Name] | S8: Date | W8: ='Payment Claim'!W6 -> 2017-04-04
A9: SC's Repres. | E9: ='Payment Claim'!E7 -> [SC's Representative] | S9: Ref. No. | W9: ='Payment Claim'!W7 -> [Contract #]-SPC-[Insert Phase-MMM-YY} e.g. BDD-Jan-17 | AL9: =IF((VLOOKUP(W9, 'E-Previous Certifications'!A9:DW32, 132))=0, "", "ERROR! Previous Certifications tab") -> 
A10: 1. Contract Details
A12: Subcontract Title | E12: ='Payment Claim'!E10 -> [Contract Title] | S12: Original Unit Basis Value | AA12: ='Payment Claim'!AA10 -> 17869385.26
S13: Original Milestone Value | AA13: ='Payment Claim'!AA11 -> 0
A14: Subcontract No. | E14: ='Payment Claim'!E12 -> [Contract #] | S14: Current Value ($)
A15: Subcontract Start | E15: ='Payment Claim'!E13 -> 2016-12-23 | S15: Work Value | W15: ='Payment Claim'!W13 -> 17869385.26
A16: Subcontract End | E16: ='Payment Claim'!E14 -> 2017-12-22 | S16: Variation(s) Value | W16: ='Payment Claim'!W14 -> 0
A17: Currency | E17: ='Payment Claim'!E15 -> CAD | S17: Travel Value | W17: ='Payment Claim'!W15 -> 74950
A18: Holdback (%) | E18: ='Payment Claim'!E16 -> 0 | S18: Total | W18: ='Payment Claim'!W16 -> 17944335.26
A19: 2. Amount Invoiced This Claim | X19: Previously Invoiced | AD19: Total Invoiced to Date
A21: Labour | J21: Regular Value | S21: ='A-Work Complete'!T40 -> 5000 | X21: ='A-Work Complete'!AL40 -> 7500 | AD21: ='A-Work Complete'!BE40 -> 12500
J22: Travel Value | S22: ='A-Work Complete'!Z40 -> 8000 | X22: ='A-Work Complete'!AR40 -> 8000 | AD22: ='A-Work Complete'!BK40 -> 16000
J24: Total Value | S24: ='Payment Claim'!N20 -> 13000 | X24: ='Payment Claim'!U20 -> 15500 | AD24: ='Payment Claim'!Z20 -> 28500
J25: Holdback This Invoice | S25: =S24*-E18 -> 0 | X25: ='Payment Claim'!U26 -> 0 | AD25: ='Payment Claim'!Z26 -> 0
J26: Backcharges | S26: ='C-Backcharges'!S23:X23 -> 0 | X26: ='C-Backcharges'!Y23 -> 0 | AD26: ='Payment Claim'!Z27 -> 0
J27: G.S.T. This Invoice | S27: =SUM(S24:W26)*0.05 -> 650 | X27: =SUM(X24:AC25)*0.05 -> 775 | AD27: =SUM(AD24:AJ25)*0.05 -> 1425
A28: Invoice # | D28: ='Payment Certificate'!D28:I28 -> [Enter Invoice #] | J28: Total Payable This Invoice | S28: =SUM(S24:W27) -> 13650 | X28: =SUM(X24:AC27) -> 16275 | AD28: =SUM(AD24:AJ27) -> 29925
A30: Goods | J30: Total Value | S30: ='Payment Claim'!N21+'Payment Claim'!N23 -> 0 | X30: ='Payment Claim'!U21+'Payment Claim'!U23 -> 0 | AD30: ='Payment Claim'!Z21+'Payment Claim'!Z23 -> 0
J31: Holdback This Invoice | S31: =S30*-E18 -> 0 | X31: =X30*-E18 -> 0 | AD31: =AD30*-E18 -> 0
J32: Backcharges | S32: - | X32: - | AD32: -
J33: G.S.T. This Invoice | S33: =SUM(S30:W31)*0.05 -> 0 | X33: =SUM(X30:AC31)*0.05 -> 0 | AD33: =SUM(AD30:AJ31)*0.05 -> 0
A34: Invoice # | D34: ='Payment Certificate'!D34:I34 -> [Enter Invoice #] | J34: Total Payable This Invoice | S34: =SUM(S30:W33) -> 0 | X34: =SUM(X30:AC33) -> 0 | AD34: =SUM(AD30:AJ33) -> 0
A36: Travel & Living | J36: Total Value | S36: ='Payment Claim'!N29 -> 4128.543616 | X36: ='Payment Claim'!U29 -> 0 | AD36: ='Payment Claim'!Z29 -> 4128.543616
J37: Holdback This Invoice | S37: - | X37: - | AD37: -
J38: Backcharges | S38: - | X38: - | AD38: -
J39: G.S.T. This Invoice | S39: =S36*0.05 -> 206.4271808 | X39: =SUM(X36:AC36)*0.05 -> 0 | AD39: =SUM(AD36:AJ36)*0.05 -> 206.4271808
A40: Invoice # | D40: ='Payment Certificate'!D40:I40 -> [Enter Invoice #] | J40: Total Payable This Invoice | S40: =SUM(S36:W39) -> 4334.970796 | X40: =SUM(X36:AC39) -> 0 | AD40: =SUM(AD36:AJ39) -> 4334.970796
D42: Net Amount Certified This Claim (excl. taxes) | S42: =SUM(S36:W38) -> 4128.543616 | X42: =SUM(X36:AC38) -> 0 | AD42: =SUM(AD36:AJ38) -> 4128.543616
D44: Total Amount Certified This Claim (incl. taxes) | S44: =SUM(S40) -> 4334.970796
A46: =spellnumber(S44) -> Four Thousand Three Hundred Thirty Four Dollars and Ninety Seven Cents
A48: Certificate of Payment
A49: I certify that To the best of my knowledge, the claim is consistent with the progress of the work and is in accordance with the contract. This claim, however,
A50: may be subject to further verification and any necessary adjustment before final settlement.
K54: Date | X54: Subcontract Authority
K57: Date | X57: Subcontract Authority - Project Lead

Sheet Forecast
A1: Project | E1: ='Payment Claim'!E4 -> [Project Name] | N1: SPC No. | R1: ='Payment Claim'!W4 -> [Insert Phase-MMM-YY} e.g. BDD-Jan-17
A2: Phase | E2: ='Payment Claim'!E5 -> [Project Phase]
A3: Supplier (SC) | E3: ='Payment Claim'!E6 -> [Company Name] | N3: Date | R3: ='Payment Claim'!W6 -> 2017-04-04
A4: SC's Repres. | E4: ='Payment Claim'!E7 -> [SC's Representative] | N4: Ref. No. | R4: ='Payment Claim'!W7 -> [Contract #]-SPC-[Insert Phase-MMM-YY} e.g. BDD-Jan-17
A5: Cash Flow Forecast (Three Month Rolling Forecast)
A7: Forecast Month | G7: Labour | K7: Goods | O7: Travel & Living | AA7: Total
A9: [*insert following Month MMDDYY] | G9: 0 | K9: 0 | O9: 0 | AA9: =SUM(G9:Z10) -> 0
A10: [*insert following Month MMDDYY] | G10: 0 | K10: 0 | O10: 0 | AA10: =SUM(G10:Z11) -> 0
A11: [*insert following Month MMDDYY] | G11: 0 | K11: 0 | O11: 0 | AA11: 0
AA19: =SUM(AE9:AH18)
